fUSD/lending_fUSD_20250103
["ID","MTS","AMOUNT","RATE_DAILY","PERIOD"]
[347548957,1735913447271,-500.0,9.253e-05,2]
[347548958,1735913447281,-500.0,9.253e-05,2]
[347548959,1735913447290,-500.0,9.253e-05,2]
[347548960,1735913447299,-500.0,9.253e-05,2]
[347548961,1735913447310,-510.91,9.253e-05,2]
[347548962,1735913447322,-500.0,9.253e-05,2]
[347548963,1735913447332,-500.0,9.253e-05,2]
[347548964,1735913447341,-722.05,9.253e-05,2]
[347548965,1735913447351,-500.0,9.253e-05,2]
[347548966,1735913447360,-500.0,9.253e-05,7]
[347548967,1735913447370,-500.0,9.253e-05,2]
[347548968,1735913447379,-500.0,9.253e-05,2]
[347548969,1735913447390,-500.0,9.253e-05,2]
[347548970,1735913447399,-500.0,9.253e-05,2]
[347548971,1735913447408,-500.0,9.253e-05,2]
[347548972,1735913447417,-500.0,9.253e-05,2]
[347548973,1735913447427,-500.0,9.253e-05,2]
[347548974,1735913447436,-500.0,9.253e-05,2]
[347548975,1735913447445,-500.0,9.253e-05,2]
[347548976,1735913447455,-513.39,9.253e-05,2]
[347548977,1735913447464,-500.0,9.253e-05,2]
[347548978,1735913447473,-500.0,9.253e-05,2]
[347548979,1735913447483,-500.0,9.253e-05,2]
[347548980,1735913447492,-599.9,9.253e-05,2]
[347548981,1735913447501,-500.0,9.253e-05,2]
[347548982,1735913447511,-500.0,9.253e-05,2]
[347548983,1735913447521,-500.0,9.253e-05,2]
[347548984,1735913447530,-532.82,9.253e-05,2]
[347548985,1735913447539,-500.0,9.253e-05,2]
[347548986,1735913447549,-729.26,9.253e-05,2]
[347548987,1735913447558,-500.0,9.253e-05,2]
[347548988,1735913447568,-500.0,9.253e-05,2]
[347548989,1735913447577,-586.77,9.253e-05,2]
[347548990,1735913447587,-500.0,9.253e-05,2]
[347548991,1735913447596,-579.56,9.253e-05,2]
[347548992,1735913447606,-500.0,9.253e-05,2]
[347548993,1735913447615,-500.0,9.253e-05,2]
[347548994,1735913447625,-500.0,9.253e-05,2]
[347548995,1735913447634,-500.0,9.253e-05,2]
[347548996,1735913447643,-500.0,9.253e-05,2]
[347548997,1735913447653,-500.0,9.253e-05,2]
[347548998,1735913447662,-630.15,9.253e-05,2]
[347548999,1735913447671,-500.0,9.253e-05,2]
[347549000,1735913447681,-500.0,9.253e-05,2]
[347549001,1735913447691,-500.0,9.253e-05,2]
[347549002,1735913447700,-638.05,9.253e-05,2]
[347549003,1735913447710,-500.0,9.253e-05,2]
[347549004,1735913447719,-500.0,9.253e-05,2]
[347549005,1735913447728,-724.86,9.253e-05,2]
[347549007,1735913447737,-500.0,9.253e-05,2]
[347549008,1735913447747,-500.0,9.253e-05,2]
[347549010,1735913447756,-500.0,9.253e-05,2]
[347549012,1735913447766,-500.0,9.253e-05,2]
[347549014,1735913447776,-589.27,9.253e-05,2]
[347549016,1735913447785,-500.0,9.253e-05,2]
[347549018,1735913447795,-500.0,9.253e-05,2]
[347549020,1735913447804,-500.0,9.253e-05,2]
[347549022,1735913447813,-728.38,9.253e-05,2]
[347549024,1735913447823,-500.0,9.253e-05,2]
[347549026,1735913447832,-500.0,9.253e-05,2]
[347549028,1735913447842,-500.0,9.253e-05,2]
[347549030,1735913447851,-643.87,9.253e-05,2]
[347549031,1735913447861,-507.49,9.253e-05,2]
[347549034,1735913447871,-500.0,9.253e-05,2]
[347549035,1735913447880,-817.48,9.253e-05,2]
[347549038,1735913447890,-500.0,9.253e-05,2]
[347549039,1735913447899,-225.82507234,9.253e-05,2]
[347549042,1735913447909,-500.69,9.254e-05,2]
[347549044,1735913447919,-648.99,9.273e-05,2]
[347549046,1735913447928,-4539.25,9.273e-05,2]
[347549048,1735913447938,-669.92,9.273e-05,2]
[347549049,1735913447947,-500.0,9.273e-05,2]
[347549051,1735913447957,-945.01,9.273e-05,2]
[347549053,1735913447966,-150.0,9.275e-05,2]
[347549055,1735913447975,-507.7,9.291e-05,2]
[347549057,1735913447985,-150.0,9.37e-05,2]
[347549059,1735913447995,-150.0,9.37e-05,2]
[347549061,1735913448004,-699.0,9.38e-05,2]
[347549063,1735913448014,-37805.47885339,9.38e-05,2]
[347549066,1735913448024,-1288.0,9.4e-05,2]
[347549067,1735913448033,-150.0,9.402e-05,2]
[347549069,1735913448042,-2305.8,9.426e-05,2]
[347549071,1735913448052,-1284.19,9.426e-05,2]
[347549074,1735913448062,-965.97,9.426e-05,2]
[347549075,1735913448071,-500.0,9.426e-05,2]
[347549077,1735913448081,-1276.95,9.426e-05,2]
[347549079,1735913448090,-2589.54,9.426e-05,2]
[347549081,1735913448100,-4219.32,9.426e-05,2]
[347549083,1735913448110,-3842.99,9.426e-05,2]
[347549085,1735913448119,-5070.29,9.426e-05,2]
[347549087,1735913448128,-500.0,9.426e-05,2]
[347549089,1735913448138,-965.57,9.426e-05,2]
[347549091,1735913448147,-1809.86,9.426e-05,2]
[347549093,1735913448157,-3930.61,9.426e-05,2]
[347549096,1735913448167,-590.66,9.426e-05,2]
[347549098,1735913448176,-1506.57,9.426e-05,2]
[347549100,1735913448186,-500.0,9.426e-05,2]
[347549102,1735913448195,-809.49,9.427e-05,2]
[347549103,1735913448203,-150.0,9.466e-05,2]
[347549105,1735913448213,-900.0,9.5e-05,3]
[347549106,1735913448221,-1989.85,9.506e-05,2]
[347549108,1735913448231,-1799.39,9.506e-05,2]
[347549109,1735913448240,-626.75,9.525e-05,2]
[347549111,1735913448249,-608.12,9.525e-05,2]
[347549113,1735913448258,-1031.27,9.525e-05,2]
[347549115,1735913448268,-500.0,9.525e-05,2]
[347549116,1735913448279,-705.29,9.525e-05,2]
[347549118,1735913448290,-854.79,9.525e-05,2]
[347549119,1735913448299,-500.0,9.525e-05,2]
[347549121,1735913448308,-828.11,9.525e-05,2]
[347549123,1735913448321,-717.9,9.525e-05,2]
[347549124,1735913448330,-539.22,9.525e-05,2]
[347549126,1735913448340,-768.58,9.525e-05,2]
[347549128,1735913448349,-1740.14,9.525e-05,2]
[347549130,1735913448358,-500.0,9.525e-05,2]
[347549131,1735913448367,-500.0,9.525e-05,2]
[347549133,1735913448377,-613.37,9.525e-05,2]
[347549134,1735913448386,-500.0,9.525e-05,2]
[347549136,1735913448396,-583.31,9.525e-05,2]
[347549138,1735913448406,-1050.53,9.525e-05,2]
[347549140,1735913448415,-500.0,9.525e-05,2]
[347549141,1735913448426,-500.0,9.525e-05,2]
[347549143,1735913448435,-811.4,9.525e-05,2]
[347549145,1735913448445,-638.42,9.525e-05,2]
[347549146,1735913448454,-951.47,9.525e-05,2]
[347549148,1735913448463,-500.0,9.525e-05,2]
[347549150,1735913448473,-500.0,9.525e-05,2]
[347549151,1735913448482,-500.0,9.525e-05,2]
[347549153,1735913448492,-1412.72,9.525e-05,2]
[347549154,1735913448501,-1257.66,9.525e-05,2]
[347549156,1735913448511,-500.0,9.525e-05,2]
[347549158,1735913448520,-500.0,9.525e-05,2]
[347549160,1735913448532,-500.0,9.525e-05,2]
[347549162,1735913448541,-1028.46,9.525e-05,2]
[347549163,1735913448551,-511.34,9.525e-05,2]
[347549165,1735913448560,-999.21,9.525e-05,2]
[347549167,1735913448569,-822.4,9.525e-05,2]
[347549168,1735913448578,-500.0,9.525e-05,2]
[347549170,1735913448588,-536.73,9.525e-05,2]
[347549172,1735913448598,-544.45,9.525e-05,2]
[347549174,1735913448607,-567.06,9.525e-05,2]
[347549176,1735913448616,-500.0,9.525e-05,2]
[347549177,1735913448626,-500.0,9.525e-05,2]
[347549179,1735913448635,-553.32,9.525e-05,2]
[347549181,1735913448644,-500.0,9.525e-05,2]
[347549182,1735913448653,-519.82,9.525e-05,2]
[347549184,1735913448664,-500.0,9.525e-05,2]
[347549186,1735913448674,-500.0,9.525e-05,2]
[347549188,1735913448685,-765.62,9.525e-05,2]
[347549190,1735913448694,-500.0,9.525e-05,2]
[347549191,1735913448704,-623.53,9.525e-05,2]
[347549193,1735913448714,-655.32,9.525e-05,2]
[347549195,1735913448724,-1043.08,9.525e-05,2]
[347549197,1735913448734,-2317.13,9.525e-05,2]
[347549198,1735913448743,-1078.56,9.525e-05,2]
[347549200,1735913448753,-967.56,9.525e-05,2]
[347549202,1735913448763,-1942.46,9.525e-05,2]
[347549204,1735913448775,-500.0,9.525e-05,2]
[347549205,1735913448784,-1071.25,9.525e-05,2]
[347549207,1735913448794,-500.0,9.525e-05,2]
[347549209,1735913448804,-4630.03,9.525e-05,2]
[347549216,1735913448883,-514.03,9.525e-05,2]
[347549218,1735913448892,-843.34,9.525e-05,2]
[347549220,1735913448901,-794.16,9.525e-05,2]
[347549221,1735913448911,-500.0,9.525e-05,2]
[347549223,1735913448920,-500.0,9.525e-05,2]
[347549225,1735913448930,-816.53,9.525e-05,2]
[347549227,1735913448939,-766.16,9.525e-05,2]
[347549228,1735913448949,-980.39,9.525e-05,2]
[347549230,1735913448958,-500.0,9.525e-05,2]
[347549232,1735913448968,-663.21,9.525e-05,2]
[347549234,1735913448977,-663.36,9.525e-05,2]
[347549235,1735913448987,-1985.94,9.525e-05,2]
[347549237,1735913448999,-1430.45,9.525e-05,2]
[347549239,1735913449007,-726.86,9.525e-05,2]
[347549241,1735913449017,-500.0,9.525e-05,2]
[347549243,1735913449029,-882.78,9.525e-05,2]
[347549244,1735913449039,-1568.97,9.525e-05,2]
[347549246,1735913449048,-442.77843439,9.525e-05,2]
[347549248,1735913449059,-2876.97,9.525e-05,2]
[347549250,1735913449070,-1847.56,9.525e-05,2]
[347549251,1735913449079,-1434.31,9.525e-05,2]
[347549253,1735913449089,-1462.33,9.525e-05,2]
[347549255,1735913449098,-1166.74,9.525e-05,2]
[347549257,1735913449108,-2866.12,9.525e-05,2]
[347549258,1735913449118,-2403.46,9.525e-05,2]
[347549260,1735913449128,-598.26,9.525e-05,2]
[347549262,1735913449137,-500.0,9.525e-05,2]
[347549264,1735913449147,-500.0,9.525e-05,2]
[347549266,1735913449157,-704.51,9.525e-05,2]
[347549268,1735913449166,-3527.39,9.525e-05,2]
[347549270,1735913449176,-1048.69,9.525e-05,2]
[347549272,1735913449185,-862.27,9.525e-05,2]
[347549274,1735913449195,-544.24,9.525e-05,2]
[347549276,1735913449205,-788.51,9.525e-05,2]
[347549278,1735913449215,-477.74291355,9.525e-05,2]
[347549280,1735913449224,-500.0,9.525e-05,2]
[347549282,1735913449233,-671.55,9.525e-05,2]
[347549284,1735913449243,-1628.97,9.525e-05,2]
[347549286,1735913449252,-1628.97,9.525e-05,2]
[347549288,1735913449261,-875.5,9.525e-05,2]
[347549290,1735913449271,-626.48,9.525e-05,2]
[347549292,1735913449282,-186.64132641,9.525e-05,2]
[347549294,1735913449292,-500.0,9.525e-05,2]
[347549296,1735913449301,-1623.4,9.525e-05,2]
[347549298,1735913449314,-500.0,9.525e-05,2]
[347549300,1735913449324,-2958.01,9.525e-05,2]
[347549301,1735913449333,-500.0,9.525e-05,2]
[347549302,1735913449342,-923.94,9.525e-05,2]
[347549303,1735913449352,-3402.3,9.525e-05,2]
[347549304,1735913449361,-500.0,9.526e-05,2]
[347549305,1735913449370,-500.0,9.526e-05,2]
[347549306,1735913449379,-500.0,9.526e-05,2]
[347549307,1735913449388,-500.0,9.526e-05,2]
[347549308,1735913449399,-500.0,9.526e-05,2]
[347549309,1735913449408,-500.0,9.526e-05,2]
[347549310,1735913449417,-558.32,9.526e-05,2]
[347549311,1735913449426,-469.0182267,9.526e-05,2]
[347549312,1735913449437,-500.0,9.526e-05,2]
[347549313,1735913449445,-500.0,9.526e-05,2]
[347549314,1735913449454,-500.0,9.526e-05,2]
[347549315,1735913449463,-500.0,9.526e-05,2]
[347549316,1735913449472,-927.73,9.526e-05,2]
[347549317,1735913449481,-500.0,9.526e-05,2]
[347549318,1735913449490,-500.0,9.526e-05,2]
[347549319,1735913449511,-782.75,9.526e-05,2]
[347549320,1735913449520,-708.77,9.526e-05,2]
[347549321,1735913449532,-500.0,9.526e-05,2]
[347549322,1735913449541,-552.4,9.526e-05,2]
[347549323,1735913449551,-622.14,9.526e-05,2]
[347549325,1735913449560,-500.0,9.526e-05,2]
[347549326,1735913449569,-500.0,9.526e-05,2]
[347549328,1735913449579,-500.0,9.526e-05,2]
[347549330,1735913449589,-500.0,9.526e-05,2]
[347549332,1735913449599,-500.0,9.526e-05,2]
[347549334,1735913449608,-500.0,9.526e-05,2]
[347549336,1735913449618,-375.12845452,9.526e-05,2]
[347549338,1735913449628,-500.0,9.526e-05,2]
[347549340,1735913449637,-500.0,9.526e-05,2]
[347549342,1735913449648,-500.0,9.526e-05,2]
[347549344,1735913449658,-500.0,9.526e-05,2]
[347549346,1735913449668,-500.0,9.526e-05,2]
[347549348,1735913449678,-651.38,9.526e-05,2]
[347549350,1735913449687,-500.0,9.526e-05,2]
[347549352,1735913449697,-500.0,9.526e-05,2]
[347549354,1735913449707,-500.0,9.526e-05,2]
[347549356,1735913449716,-500.0,9.526e-05,2]
[347549358,1735913449725,-736.99,9.526e-05,2]
[347549360,1735913449735,-500.0,9.526e-05,2]
[347549362,1735913449744,-500.0,9.526e-05,2]
[347549364,1735913449753,-500.0,9.526e-05,2]
[347549366,1735913449763,-664.77,9.526e-05,2]
[347549368,1735913449772,-500.0,9.526e-05,2]
[347549370,1735913449783,-500.0,9.526e-05,2]
[347549372,1735913449792,-500.0,9.526e-05,2]
[347549374,1735913449802,-500.0,9.526e-05,2]
[347549376,1735913449811,-500.0,9.526e-05,2]
[347549378,1735913449821,-500.0,9.526e-05,2]
[347549380,1735913449830,-500.0,9.526e-05,2]
[347549382,1735913449839,-500.0,9.526e-05,2]
[347549384,1735913449848,-1420.12,9.526e-05,2]
[347549386,1735913449857,-500.0,9.526e-05,2]
[347549388,1735913449866,-526.38,9.526e-05,2]
[347549390,1735913449875,-500.0,9.526e-05,2]
[347549392,1735913449885,-500.0,9.526e-05,2]
[347549394,1735913449894,-500.0,9.526e-05,2]
[347549396,1735913449903,-500.0,9.526e-05,2]
[347549398,1735913449913,-500.0,9.526e-05,2]
[347549400,1735913449922,-562.13,9.526e-05,2]
[347549402,1735913449931,-546.38,9.526e-05,2]
[347549403,1735913449940,-681.97,9.526e-05,2]
[347549405,1735913449949,-500.0,9.526e-05,2]
[347549407,1735913449958,-500.0,9.526e-05,2]
[347549409,1735913449967,-1390.36,9.526e-05,2]
[347549411,1735913449976,-540.37,9.526e-05,2]
[347549413,1735913449986,-504.44,9.526e-05,2]
[347549415,1735913449995,-500.0,9.526e-05,2]
[347549417,1735913450004,-770.82,9.526e-05,2]
[347549419,1735913450014,-500.0,9.526e-05,2]
[347549421,1735913450026,-999.6,9.526e-05,2]
[347549423,1735913450035,-281.00014399,9.526e-05,2]
[347549425,1735913450045,-500.0,9.526e-05,2]
[347549427,1735913450054,-500.0,9.526e-05,2]
[347549429,1735913450063,-500.0,9.526e-05,2]
[347549431,1735913450072,-500.0,9.526e-05,2]
[347549433,1735913450081,-500.0,9.526e-05,2]
[347549435,1735913450090,-818.72,9.526e-05,2]
[347549437,1735913450099,-500.0,9.526e-05,2]
[347549439,1735913450109,-500.0,9.526e-05,2]
[347549441,1735913450118,-1476.13,9.526e-05,2]
[347549443,1735913450129,-500.0,9.526e-05,2]
[347549445,1735913450138,-550.53,9.526e-05,2]
[347549447,1735913450147,-500.0,9.526e-05,2]
[347549449,1735913450156,-566.14,9.526e-05,2]
[347549451,1735913450165,-500.0,9.526e-05,2]
[347549453,1735913450175,-500.0,9.526e-05,2]
[347549455,1735913450185,-3834.5,9.526e-05,2]
[347549457,1735913450194,-500.0,9.526e-05,2]
[347549460,1735913450203,-500.0,9.526e-05,2]
[347549461,1735913450213,-849.66,9.526e-05,2]
[347549463,1735913450221,-500.0,9.526e-05,2]
[347549465,1735913450230,-500.0,9.526e-05,2]
[347549467,1735913450239,-701.93,9.526e-05,2]
[347549470,1735913450249,-580.29,9.526e-05,2]
[347549472,1735913450259,-500.0,9.526e-05,2]
[347549474,1735913450268,-500.0,9.526e-05,2]
[347549475,1735913450280,-500.0,9.526e-05,2]
[347549477,1735913450290,-500.0,9.526e-05,2]
[347549479,1735913450299,-500.0,9.526e-05,2]
[347549482,1735913450308,-3020.2,9.526e-05,2]
[347549483,1735913450322,-500.0,9.526e-05,2]
[347549485,1735913450331,-744.66,9.526e-05,2]
[347549487,1735913450341,-615.34,9.526e-05,2]
[347549489,1735913450350,-572.76,9.526e-05,2]
[347549491,1735913450359,-500.0,9.526e-05,2]
[347549493,1735913450371,-500.0,9.526e-05,2]
[347549496,1735913450380,-500.0,9.526e-05,2]
[347549497,1735913450390,-500.0,9.526e-05,2]
[347549500,1735913450403,-562.66,9.526e-05,2]
[347549502,1735913450413,-639.62,9.526e-05,2]
[347549504,1735913450422,-633.45,9.526e-05,2]
[347549506,1735913450431,-939.85,9.526e-05,2]
[347549508,1735913450440,-284.71877571,9.526e-05,2]
[347549510,1735913450450,-500.0,9.526e-05,2]
[347549511,1735913450459,-569.06,9.526e-05,2]
[347549513,1735913450468,-500.0,9.526e-05,2]
[347549515,1735913450477,-500.0,9.526e-05,2]
[347549517,1735913450486,-690.4,9.526e-05,2]
[347549520,1735913450495,-500.0,9.526e-05,2]
[347549521,1735913450504,-500.0,9.526e-05,2]
[347549523,1735913450514,-500.0,9.526e-05,2]
[347549526,1735913450526,-500.0,9.526e-05,2]
[347549528,1735913450535,-880.0,9.526e-05,2]
[347549530,1735913450544,-616.52,9.526e-05,2]
[347549532,1735913450553,-500.0,9.526e-05,2]
[347549533,1735913450562,-500.0,9.526e-05,2]
[347549535,1735913450572,-602.78,9.526e-05,2]
[347549537,1735913450581,-755.26,9.526e-05,2]
[347549539,1735913450590,-500.0,9.526e-05,2]
[347549541,1735913450599,-500.0,9.526e-05,2]
[347549543,1735913450608,-546.67,9.526e-05,2]
[347549545,1735913450618,-500.0,9.526e-05,2]
[347549547,1735913450627,-500.0,9.526e-05,2]
[347549550,1735913450636,-542.7,9.526e-05,2]
[347549552,1735913450646,-566.12,9.526e-05,2]
[347549554,1735913450655,-845.64,9.526e-05,2]
[347549556,1735913450664,-639.71,9.526e-05,2]
[347549557,1735913450673,-500.0,9.526e-05,2]
[347549559,1735913450682,-500.0,9.526e-05,2]
[347549561,1735913450691,-599.43052118,9.526e-05,2]
[347549563,1735913450700,-656.05,9.526e-05,2]
[347549565,1735913450709,-500.0,9.526e-05,2]
[347549567,1735913450719,-565.64,9.526e-05,2]
[347549569,1735913450728,-500.0,9.526e-05,2]
[347549571,1735913450736,-1116.53,9.526e-05,2]
[347549573,1735913450745,-1015.21,9.526e-05,2]
[347549575,1735913450757,-500.0,9.526e-05,2]
[347549577,1735913450766,-909.42,9.526e-05,2]
[347549579,1735913450776,-500.0,9.526e-05,2]
[347549581,1735913450785,-500.0,9.526e-05,2]
[347549583,1735913450794,-522.87,9.526e-05,2]
[347549585,1735913450803,-500.0,9.526e-05,2]
[347549587,1735913450812,-779.21,9.526e-05,2]
[347549589,1735913450822,-1388.32,9.526e-05,2]
[347549591,1735913450831,-681.68,9.526e-05,2]
[347549593,1735913450840,-500.0,9.526e-05,2]
[347549595,1735913450849,-500.0,9.526e-05,2]
[347549597,1735913450858,-500.0,9.526e-05,2]
[347549599,1735913450867,-4323.21,9.526e-05,2]
[347549601,1735913450876,-588.17,9.526e-05,2]
[347549603,1735913450885,-500.0,9.526e-05,2]
[347549605,1735913450894,-1932.63,9.526e-05,2]
[347549607,1735913450904,-2492.6,9.526e-05,2]
[347549609,1735913450913,-810.7,9.526e-05,2]
[347549611,1735913450923,-2757.82,9.526e-05,2]
[347549613,1735913450933,-500.0,9.526e-05,2]
[347549615,1735913450942,-500.0,9.526e-05,2]
[347549617,1735913450951,-626.45,9.526e-05,2]
[347549619,1735913450960,-700.03,9.526e-05,2]
[347549621,1735913450969,-500.0,9.526e-05,2]
[347549623,1735913450977,-500.0,9.526e-05,2]
[347549625,1735913450987,-4728.18,9.526e-05,2]
[347549627,1735913450996,-500.0,9.526e-05,2]
[347549629,1735913451005,-500.0,9.527e-05,2]
[347549631,1735913451014,-660.78,9.527e-05,2]
[347549633,1735913451024,-500.0,9.527e-05,2]
[347549635,1735913451033,-500.0,9.527e-05,2]
[347549637,1735913451043,-500.0,9.527e-05,2]
[347549639,1735913451052,-500.0,9.527e-05,2]
[347549641,1735913451061,-500.0,9.527e-05,2]
[347549643,1735913451070,-500.0,9.527e-05,2]
[347549645,1735913451079,-500.0,9.527e-05,2]
[347549647,1735913451088,-558.55365154,9.527e-05,2]
[347549649,1735913451097,-500.0,9.527e-05,2]
[347549651,1735913451106,-583.48,9.527e-05,2]
[347549653,1735913451115,-500.0,9.527e-05,2]
[347549655,1735913451124,-500.0,9.527e-05,2]
[347549657,1735913451133,-500.0,9.527e-05,2]
[347549659,1735913451142,-500.0,9.527e-05,2]
[347549661,1735913451151,-500.0,9.527e-05,2]
[347549662,1735913451160,-500.0,9.527e-05,2]
[347549665,1735913451170,-500.0,9.527e-05,2]
[347549666,1735913451179,-500.0,9.527e-05,2]
[347549668,1735913451188,-500.0,9.527e-05,2]
[347549671,1735913451197,-500.0,9.527e-05,2]
[347549673,1735913451207,-500.0,9.527e-05,2]
[347549675,1735913451216,-500.0,9.527e-05,2]
[347549676,1735913451228,-500.0,9.527e-05,2]
[347549678,1735913451237,-510.91,9.527e-05,2]
[347549680,1735913451246,-500.0,9.527e-05,2]
[347549682,1735913451255,-500.0,9.527e-05,2]
[347549685,1735913451264,-722.05,9.527e-05,2]
[347549686,1735913451275,-500.0,9.527e-05,2]
[347549688,1735913451284,-500.0,9.527e-05,7]
[347549690,1735913451294,-500.0,9.527e-05,2]
[347549692,1735913451303,-500.0,9.527e-05,2]
[347549694,1735913451313,-500.0,9.527e-05,2]
[347549696,1735913451325,-500.0,9.527e-05,2]
[347549698,1735913451334,-500.0,9.527e-05,2]
[347549700,1735913451342,-500.0,9.527e-05,2]
[347549702,1735913451352,-500.0,9.527e-05,2]
[347549704,1735913451361,-500.0,9.527e-05,2]
[347549706,1735913451371,-500.0,9.527e-05,2]
[347549708,1735913451380,-513.39,9.527e-05,2]
[347549710,1735913451389,-500.0,9.527e-05,2]
[347549712,1735913451398,-500.0,9.527e-05,2]
[347549714,1735913451407,-584.52860194,9.527e-05,2]
[347549716,1735913451416,-599.9,9.527e-05,2]
[347549718,1735913451426,-500.0,9.527e-05,2]
[347549720,1735913451435,-500.0,9.527e-05,2]
[347549722,1735913451444,-500.0,9.527e-05,2]
[347549724,1735913451453,-532.82,9.527e-05,2]
[347549726,1735913451462,-500.0,9.527e-05,2]
[347549728,1735913451471,-729.26,9.527e-05,2]
[347549730,1735913451481,-500.0,9.527e-05,2]
[347549732,1735913451490,-500.0,9.527e-05,2]
[347549734,1735913451498,-586.77,9.527e-05,2]
[347549736,1735913451507,-500.0,9.527e-05,2]
[347549738,1735913451517,-579.56,9.527e-05,2]
[347549740,1735913451527,-500.0,9.527e-05,2]
[347549742,1735913451537,-500.0,9.527e-05,2]
[347549744,1735913451546,-500.0,9.527e-05,2]
[347549746,1735913451555,-500.0,9.527e-05,2]
[347549748,1735913451564,-500.0,9.527e-05,2]
[347549750,1735913451573,-500.0,9.527e-05,2]
[347549752,1735913451582,-630.15,9.527e-05,2]
[347549754,1735913451591,-500.0,9.527e-05,2]
[347549756,1735913451600,-500.0,9.527e-05,2]
[347549758,1735913451610,-500.0,9.527e-05,2]
[347549760,1735913451619,-638.05,9.527e-05,2]
[347549762,1735913451628,-500.0,9.527e-05,2]
[347549764,1735913451637,-500.0,9.527e-05,2]
[347549766,1735913451647,-724.86,9.527e-05,2]
[347549768,1735913451656,-500.0,9.527e-05,2]
[347549770,1735913451665,-500.0,9.527e-05,2]
[347549772,1735913451674,-500.0,9.527e-05,2]
[347549774,1735913451683,-500.0,9.527e-05,2]
[347549776,1735913451692,-589.27,9.527e-05,2]
[347549778,1735913451701,-500.0,9.527e-05,2]
[347549779,1735913451710,-500.0,9.527e-05,2]
[347549782,1735913451719,-500.0,9.527e-05,2]
[347549784,1735913451729,-728.38,9.527e-05,2]
[347549786,1735913451738,-500.0,9.527e-05,2]
[347549787,1735913451747,-500.0,9.527e-05,2]
[347549789,1735913451756,-500.0,9.527e-05,2]
[347549791,1735913451765,-643.87,9.527e-05,2]
[347549793,1735913451776,-507.49,9.527e-05,2]
[347549796,1735913451786,-500.0,9.527e-05,2]
[347549798,1735913451795,-817.48,9.527e-05,2]
[347549800,1735913451804,-500.0,9.527e-05,2]
[347549801,1735913451813,-191.407,9.528e-05,2]
[347549804,1735913451823,-3590.17,9.528e-05,2]
[347549806,1735913451831,-648.99,9.547e-05,2]
[347549808,1735913451840,-4539.25,9.547e-05,2]
[347549810,1735913451850,-669.92,9.547e-05,2]
[347549812,1735913451859,-500.0,9.547e-05,2]
[347549814,1735913451868,-945.01,9.547e-05,2]
[347549815,1735913451877,-500.0,9.553e-05,2]
[347549817,1735913451886,-500.89681743,9.553e-05,2]
[347549819,1735913451895,-150.0,9.562e-05,2]
[347549821,1735913451904,-150.0,9.562e-05,2]
[347549823,1735913451913,-150.0,9.562e-05,2]
[347549825,1735913451923,-1575.0,9.562e-05,2]
[347549828,1735913451932,-500.0,9.579e-05,2]
[347549829,1735913451941,-500.0,9.579e-05,2]
[347549831,1735913451950,-494.07727682,9.579e-05,2]
[347549833,1735913451960,-1860.46,9.579e-05,2]
[347549835,1735913451969,-1150.43,9.579e-05,2]
[347549837,1735913451978,-2650.405999,9.579e-05,2]
[347549839,1735913451986,-153.754164,9.579e-05,2]
[347549841,1735913451995,-155.826196,9.579e-05,2]
[347549843,1735913452004,-2670.03,9.579e-05,2]
[347549845,1735913452013,-2776.244442,9.579e-05,2]
[347549847,1735913452022,-1490.58,9.579e-05,2]
[347549849,1735913452033,-825.55,9.579e-05,2]
[347549852,1735913452042,-500.0,9.579e-05,2]
[347549854,1735913452051,-874.26,9.579e-05,2]
[347549855,1735913452060,-623.75,9.579e-05,2]
[347549857,1735913452069,-156.995149,9.579e-05,2]
[347549860,1735913452079,-3583.7,9.579e-05,2]